fUST/lending_fUST_20250814
["ID","MTS","AMOUNT","RATE_DAILY","PERIOD"]
[379109532,1755147041535,-463.10309652,0.0001822,2]
[379109534,1755147041544,-460.0,0.0001822,2]
[379109536,1755147041554,-464.70415206,0.0001822,2]
[379109539,1755147041563,-1049.11,0.0001822,2]
[379109540,1755147041572,-460.0,0.0001822,2]
[379109542,1755147041582,-464.46754549,0.0001822,2]
[379109544,1755147041591,-806.51,0.0001822,2]
[379109546,1755147041602,-460.0,0.0001822,2]
[379109548,1755147041612,-460.0,0.0001822,2]
[379109550,1755147041621,-460.0,0.0001822,2]
[379109553,1755147041632,-460.0,0.0001822,2]
[379109554,1755147041642,-1361.09,0.0001822,2]
[379109557,1755147041651,-1175.69,0.0001822,2]
[379109559,1755147041662,-2586.25,0.0001822,2]
[379109560,1755147041671,-1017.94,0.0001822,2]
[379109562,1755147041681,-460.0,0.0001822,2]
[379109564,1755147041691,-460.0,0.0001822,2]
[379109566,1755147041699,-460.0,0.0001822,2]
[379109568,1755147041709,-3575.19,0.0001822,2]
[379109570,1755147041718,-460.0,0.0001822,2]
[379109572,1755147041727,-984.02,0.0001822,2]
[379109574,1755147041736,-460.0,0.0001822,2]
[379109576,1755147041746,-400.79533372,0.0001822,2]
[379109578,1755147041755,-460.0,0.0001822,2]
[379109580,1755147041764,-3685.49,0.0001822,2]
[379109582,1755147041773,-460.0,0.0001822,2]
[379109584,1755147041783,-460.0,0.0001822,2]
[379109586,1755147041792,-460.0,0.00018221,2]
[379109588,1755147041801,-460.0,0.00018221,2]
[379109590,1755147041810,-460.0,0.00018221,2]
[379109592,1755147041819,-464.10101837,0.00018221,2]
[379109594,1755147041828,-465.47662466,0.00018221,2]
[379109596,1755147041837,-772.26,0.00018221,2]
[379109598,1755147041847,-460.0,0.00018221,2]
[379109600,1755147041856,-460.0,0.00018221,2]
[379109602,1755147041865,-460.0,0.00018221,2]
[379109604,1755147041874,-301.50309681,0.00018221,2]
[379109606,1755147041884,-460.0,0.00018221,2]
[379109609,1755147041893,-460.0,0.00018221,2]
[379109610,1755147041903,-460.0,0.00018221,2]
[379109613,1755147041912,-460.0,0.00018221,2]
[379109614,1755147041921,-468.62718844,0.00018221,2]
[379109616,1755147041930,-460.0,0.00018221,2]
[379109618,1755147041939,-460.0,0.00018221,2]
[379109620,1755147041948,-460.0,0.00018221,2]
[379109622,1755147041958,-460.0,0.00018221,2]
[379109624,1755147041967,-460.0,0.00018221,2]
[379109626,1755147041977,-460.0,0.00018221,2]
[379109628,1755147041986,-464.06,0.00018221,2]
[379109630,1755147041995,-621.69,0.00018221,2]
[379109632,1755147042004,-460.0,0.00018221,2]
[379109634,1755147042014,-578.28,0.00018221,2]
[379109636,1755147042023,-460.0,0.00018221,2]
[379109638,1755147042032,-460.0,0.00018221,2]
[379109640,1755147042041,-460.0,0.00018221,2]
[379109642,1755147042050,-460.0,0.00018221,2]
[379109644,1755147042061,-460.0,0.00018221,2]
[379109646,1755147042070,-460.0,0.00018221,2]
[379109648,1755147042079,-460.0,0.00018221,2]
[379109650,1755147042089,-460.0,0.00018221,2]
[379109652,1755147042098,-460.0,0.00018221,2]
[379109654,1755147042108,-527.27419697,0.00018221,2]
[379109656,1755147042117,-460.0,0.00018221,2]
[379109658,1755147042128,-460.0,0.00018221,2]
[379109660,1755147042137,-460.0,0.00018221,2]
[379109662,1755147042148,-451.33064805,0.00018221,2]
[379109664,1755147042158,-460.0,0.00018221,2]
[379109666,1755147042168,-460.0,0.00018221,2]
[379109668,1755147042177,-460.0,0.00018221,2]
[379109670,1755147042187,-460.0,0.00018221,2]
[379109672,1755147042198,-460.0,0.00018221,2]
[379109674,1755147042207,-460.0,0.00018221,2]
[379109676,1755147042217,-460.0,0.00018221,2]
[379109678,1755147042226,-460.0,0.00018221,2]
[379109680,1755147042236,-1668.02,0.00018221,2]
[379109682,1755147042245,-657.25,0.00018221,2]
[379109684,1755147042254,-460.0,0.00018221,2]
[379109686,1755147042263,-460.0,0.00018221,2]
[379109688,1755147042272,-460.0,0.00018221,2]
[379109690,1755147042282,-460.0,0.00018221,2]
[379109692,1755147042291,-460.0,0.00018221,2]
[379109694,1755147042300,-597.19,0.00018221,2]
[379109696,1755147042310,-460.0,0.00018221,2]
[379109698,1755147042319,-460.0,0.00018221,2]
[379109700,1755147042328,-1668.0,0.00018221,2]
[379109702,1755147042337,-292.99278701,0.00018221,2]
[379109704,1755147042346,-460.0,0.00018221,2]
[379109706,1755147042355,-460.0,0.00018221,2]
[379109708,1755147042364,-290.78540373,0.00018221,2]
[379109710,1755147042373,-460.0,0.00018221,2]
[379109712,1755147042383,-460.0,0.00018221,2]
[379109713,1755147042392,-460.0,0.00018221,2]
[379109715,1755147042402,-460.0,0.00018221,2]
[379109718,1755147042411,-460.0,0.00018221,2]
[379109719,1755147042423,-460.0,0.00018221,2]
[379109721,1755147042432,-575.23,0.00018221,2]
[379109723,1755147042441,-467.8024199,0.00018221,2]
[379109725,1755147042450,-460.68403278,0.00018221,2]
[379109727,1755147042460,-460.54686259,0.00018221,2]
[379109729,1755147042470,-460.0,0.00018221,2]
[379109731,1755147042480,-460.0,0.00018221,2]
[379109733,1755147042490,-460.0,0.00018221,2]
[379109735,1755147042499,-463.72260393,0.00018221,2]
[379109737,1755147042509,-590.3,0.00018221,2]
[379109739,1755147042518,-460.0,0.00018221,2]
[379109741,1755147042527,-460.0,0.00018221,2]
[379109743,1755147042536,-460.0,0.00018221,2]
[379109745,1755147042546,-460.0,0.00018221,2]
[379109747,1755147042555,-910.06,0.00018221,2]
[379109749,1755147042563,-460.0,0.00018221,2]
[379109751,1755147042573,-460.0,0.00018221,2]
[379109753,1755147042583,-460.0,0.00018221,2]
[379109755,1755147042593,-460.0,0.00018221,2]
[379109757,1755147042603,-460.0,0.00018221,2]
[379109759,1755147042612,-460.0,0.00018221,2]
[379109761,1755147042621,-460.0,0.00018221,2]
[379109763,1755147042632,-655.13,0.00018221,2]
[379109765,1755147042641,-460.0,0.00018221,2]
[379109767,1755147042650,-460.0,0.00018221,2]
[379109769,1755147042659,-460.0,0.00018221,2]
[379109771,1755147042668,-460.0,0.00018221,2]
[379109773,1755147042678,-460.0,0.00018221,2]
[379109775,1755147042687,-465.83713181,0.00018221,2]
[379109776,1755147042696,-460.0,0.00018221,2]
[379109778,1755147042706,-460.0,0.00018221,2]
[379109780,1755147042715,-506.08,0.00018221,2]
[379109782,1755147042725,-460.0,0.00018221,2]
[379109784,1755147042734,-460.0,0.00018221,2]
[379109787,1755147042744,-460.0,0.00018221,2]
[379109788,1755147042753,-460.0,0.00018221,2]
[379109790,1755147042762,-283.34342489,0.00018221,2]
[379109792,1755147042771,-460.0,0.00018221,2]
[379109794,1755147042781,-341.06768206,0.00018221,2]
[379109796,1755147042790,-535.98,0.00018221,2]
[379109798,1755147042799,-408.58343501,0.00018221,2]
[379109800,1755147042809,-460.0,0.00018221,2]
[379109802,1755147042818,-1186.68,0.00018221,2]
[379109804,1755147042828,-460.0,0.00018221,2]
[379109806,1755147042837,-460.0,0.00018221,2]
[379109808,1755147042846,-460.0,0.00018221,2]
[379109810,1755147042855,-460.0,0.00018221,2]
[379109812,1755147042863,-460.0,0.00018221,2]
[379109814,1755147042872,-460.0,0.00018221,2]
[379109816,1755147042882,-460.0,0.00018221,2]
[379109818,1755147042892,-460.0,0.00018221,2]
[379109820,1755147042901,-460.0,0.00018221,2]
[379109822,1755147042910,-860.44,0.00018221,2]
[379109824,1755147042919,-460.0,0.00018221,2]
[379109826,1755147042928,-806.47,0.00018221,2]
[379109828,1755147042938,-460.0,0.00018221,2]
[379109829,1755147042947,-460.0,0.00018221,2]
[379109831,1755147042956,-1938.57,0.00018221,2]
[379109834,1755147042966,-460.0,0.00018221,2]
[379109835,1755147042975,-591.61287305,0.00018221,2]
[379109837,1755147042985,-1374.14,0.00018221,2]
[379109839,1755147042994,-1209.93,0.00018221,2]
[379109841,1755147043003,-460.82511039,0.00018221,2]
[379109843,1755147043012,-465.71822067,0.00018221,2]
[379109845,1755147043021,-460.0,0.00018221,2]
[379109847,1755147043030,-460.0,0.00018221,2]
[379109849,1755147043039,-460.0,0.00018221,2]
[379109851,1755147043049,-460.0,0.00018221,2]
[379109853,1755147043060,-747.93,0.00018221,2]
[379109855,1755147043069,-460.0,0.00018221,2]
[379109857,1755147043079,-460.0,0.00018221,2]
[379109859,1755147043089,-460.0,0.00018221,2]
[379109861,1755147043098,-401.0706254,0.00018221,2]
[379109863,1755147043107,-460.0,0.00018221,2]
[379109865,1755147043116,-460.0,0.00018221,2]
[379109867,1755147043126,-460.0,0.00018221,2]
[379109869,1755147043136,-460.0,0.00018221,2]
[379109871,1755147043145,-460.99494385,0.00018221,2]
[379109873,1755147043155,-1000.0,0.00018221,2]
[379109875,1755147043165,-460.0,0.00018221,2]
[379109877,1755147043174,-460.0,0.00018221,2]
[379109879,1755147043184,-460.0,0.00018221,2]
[379109881,1755147043193,-1561.0,0.00018221,2]
[379109883,1755147043203,-469.68,0.00018221,2]
[379109885,1755147043213,-1058.18,0.00018221,2]
[379109887,1755147043222,-460.0,0.00018221,2]
[379109889,1755147043232,-560.89,0.00018221,2]
[379109891,1755147043241,-460.0,0.00018221,2]
[379109893,1755147043250,-460.0,0.00018221,2]
[379109895,1755147043259,-151.0,0.00018221,2]
[379109897,1755147043268,-460.0,0.00018221,2]
[379109899,1755147043278,-460.0,0.00018221,2]
[379109901,1755147043287,-151.0,0.00018221,2]
[379109903,1755147043297,-460.0,0.00018221,2]
[379109905,1755147043307,-460.0,0.00018221,2]
[379109907,1755147043317,-460.0,0.00018221,2]
[379109909,1755147043326,-460.0,0.00018221,2]
[379109911,1755147043336,-460.0,0.00018221,2]
[379109913,1755147043345,-460.0,0.00018221,2]
[379109915,1755147043354,-1173.76,0.00018221,2]
[379109917,1755147043363,-151.0,0.00018222,2]
[379109919,1755147043373,-460.0,0.00018223,2]
[379109921,1755147043383,-327.25950545,0.00018223,2]
[379109923,1755147043392,-331.18271432,0.00018223,2]
[379109925,1755147043401,-460.0,0.00018223,2]
[379109927,1755147043410,-460.0,0.00018223,2]
[379109928,1755147043421,-460.0,0.00018223,2]
[379109930,1755147043431,-460.0,0.00018223,2]
[379109932,1755147043440,-460.0,0.00018223,2]
[379109934,1755147043449,-460.0,0.00018223,2]
[379109936,1755147043458,-460.0,0.00018223,2]
[379109938,1755147043470,-460.0,0.00018223,2]
[379109940,1755147043479,-460.0,0.00018223,2]
[379109942,1755147043489,-500.0,0.00018223,2]
[379109944,1755147043500,-170.99338117,0.00018223,2]
[379109946,1755147043510,-500.0,0.00018223,2]
[379109948,1755147043519,-500.0,0.00018223,2]
[379109950,1755147043528,-500.0,0.00018223,2]
[379109952,1755147043537,-500.0,0.00018223,2]
[379109954,1755147043547,-240.7913915,0.00018223,2]
[379109956,1755147043556,-460.0,0.00018223,2]
[379109958,1755147043565,-465.93519829,0.00018223,2]
[379109960,1755147043575,-791.4,0.00018223,2]
[379109962,1755147043584,-460.0,0.00018223,2]
[379109964,1755147043594,-768.01,0.00018223,2]
[379109966,1755147043604,-460.0,0.00018223,2]
[379109968,1755147043613,-151.0,0.00018223,2]
[379109970,1755147043623,-151.0,0.00018223,2]
[379109972,1755147043633,-151.0,0.00018223,2]
[379109974,1755147043642,-465.52,0.00018223,2]
[379109975,1755147043651,-807.48,0.00018223,2]
[379109977,1755147043661,-460.0,0.00018223,2]
[379109979,1755147043670,-499.21,0.00018223,2]
[379109981,1755147043680,-460.0,0.00018223,2]
[379109983,1755147043689,-460.0,0.00018223,2]
[379109985,1755147043699,-460.0,0.00018223,2]
[379109987,1755147043709,-460.0,0.00018223,2]
[379109989,1755147043719,-460.0,0.00018223,2]
[379109991,1755147043728,-460.0,0.00018223,2]
[379110007,1755147043857,-460.0,0.00018223,2]
[379110010,1755147043889,-460.0,0.00018223,2]
[379110012,1755147043898,-1745.11,0.00018223,2]
[379110014,1755147043908,-672.24,0.00018223,2]
[379110016,1755147043917,-460.0,0.00018223,2]
[379110018,1755147043926,-460.0,0.00018223,2]
[379110020,1755147043935,-460.0,0.00018223,2]
[379110022,1755147043945,-460.0,0.00018223,2]
[379110023,1755147043954,-460.0,0.00018223,2]
[379110025,1755147043963,-460.0,0.00018223,2]
[379110027,1755147043972,-460.0,0.00018223,2]
[379110029,1755147043982,-464.13650722,0.00018223,2]
[379110031,1755147043991,-460.0,0.00018223,2]
[379110033,1755147044000,-460.0,0.00018223,2]
[379110035,1755147044010,-460.0,0.00018223,2]
[379110037,1755147044019,-460.0,0.00018223,2]
[379110039,1755147044028,-460.0,0.00018223,2]
[379110041,1755147044037,-151.0,0.00018223,2]
[379110043,1755147044046,-151.0,0.00018223,2]
[379110045,1755147044056,-460.0,0.00018223,2]
[379110047,1755147044065,-566.87,0.00018223,2]
[379110049,1755147044074,-460.0,0.00018224,2]
[379110051,1755147044084,-460.0,0.00018224,2]
[379110053,1755147044093,-460.0,0.00018224,2]
[379110055,1755147044102,-460.0,0.00018224,2]
[379110056,1755147044111,-460.0,0.00018224,2]
[379110057,1755147044120,-460.0,0.00018224,2]
[379110058,1755147044130,-460.0,0.00018224,2]
[379110059,1755147044139,-460.0,0.00018224,2]
[379110060,1755147044148,-460.0,0.00018224,2]
[379110061,1755147044158,-465.21285782,0.00018224,2]
[379110062,1755147044167,-460.0,0.00018224,2]
[379110063,1755147044176,-509.16132593,0.00018224,2]
[379110064,1755147044186,-460.0,0.00018224,2]
[379110065,1755147044195,-460.0,0.00018224,2]
[379110066,1755147044205,-277.80418431,0.00018224,2]
[379110067,1755147044215,-460.0,0.00018224,2]
[379110068,1755147044225,-460.0,0.00018224,2]
[379110069,1755147044234,-460.0,0.00018224,2]
[379110070,1755147044244,-610.75,0.00018224,2]
[379110071,1755147044253,-460.0,0.00018224,2]
[379110072,1755147044263,-460.0,0.00018224,2]
[379110073,1755147044273,-460.0,0.00018224,2]
[379110074,1755147044283,-460.0,0.00018224,2]
[379110075,1755147044292,-460.0,0.00018224,2]
[379110076,1755147044301,-460.0,0.00018224,2]
[379110077,1755147044310,-460.0,0.00018224,2]
[379110078,1755147044320,-460.0,0.00018224,2]
[379110080,1755147044329,-460.0,0.00018224,2]
[379110081,1755147044338,-460.0,0.00018224,2]
[379110083,1755147044347,-460.0,0.00018224,2]
[379110084,1755147044356,-460.0,0.00018224,2]
[379110086,1755147044366,-461.82937799,0.00018224,2]
[379110088,1755147044375,-460.0,0.00018224,2]
[379110090,1755147044384,-460.0,0.00018224,2]
[379110092,1755147044394,-152.197988,0.00018224,2]
[379110094,1755147044403,-460.0,0.00018224,2]
[379110096,1755147044412,-460.0,0.00018224,2]
[379110098,1755147044426,-364.66079051,0.00018224,2]
[379110100,1755147044435,-460.0,0.00018224,2]
[379110103,1755147044445,-460.0,0.00018224,2]
[379110105,1755147044455,-460.0,0.00018224,2]
[379110107,1755147044465,-151.0,0.00018224,2]
[379110109,1755147044477,-151.0,0.00018224,2]
[379110111,1755147044486,-460.0,0.00018224,2]
[379110113,1755147044496,-460.0,0.00018224,2]
[379110115,1755147044506,-468.81321486,0.00018224,2]
[379110117,1755147044515,-554.8,0.00018224,2]
[379110119,1755147044524,-460.0,0.00018224,2]
[379110121,1755147044533,-460.0,0.00018224,2]
[379110123,1755147044542,-460.0,0.00018224,2]
[379110125,1755147044552,-460.0,0.00018224,2]
[379110127,1755147044561,-460.0,0.00018224,2]
[379110129,1755147044575,-460.0,0.00018224,2]
[379110131,1755147044594,-460.0,0.00018224,2]
[379110133,1755147044603,-460.0,0.00018224,2]
[379110135,1755147044612,-473.55281251,0.00018224,2]
[379110137,1755147044621,-465.44377966,0.00018224,2]
[379110139,1755147044631,-150.74041562,0.00018224,2]
[379110141,1755147044641,-460.0,0.00018224,2]
[379110143,1755147044650,-460.0,0.00018224,2]
[379110145,1755147044659,-487.47,0.00018224,2]
[379110147,1755147044669,-460.0,0.00018224,2]
[379110149,1755147044678,-460.0,0.00018224,2]
[379110151,1755147044687,-460.0,0.00018224,2]
[379110153,1755147044696,-460.0,0.00018224,2]
[379110155,1755147044705,-445.5963132,0.00018224,2]
[379110157,1755147044715,-460.0,0.00018224,2]
[379110159,1755147044724,-460.0,0.00018224,2]
[379110161,1755147044733,-460.0,0.00018224,2]
[379110163,1755147044742,-460.0,0.00018224,2]
[379110165,1755147044752,-531.53,0.00018224,2]
[379110167,1755147044761,-460.0,0.00018224,2]
[379110169,1755147044770,-460.0,0.00018224,2]
[379110171,1755147044779,-460.0,0.00018224,2]
[379110173,1755147044788,-151.0,0.00018224,2]
[379110175,1755147044797,-151.0,0.00018224,2]
[379110177,1755147044807,-151.0,0.00018224,2]
[379110179,1755147044815,-460.0,0.00018224,2]
[379110181,1755147044825,-990.7,0.00018224,2]
[379110183,1755147044834,-460.0,0.00018224,2]
[379110185,1755147044844,-471.16096365,0.00018224,2]
[379110187,1755147044853,-460.0,0.00018224,2]
[379110189,1755147044863,-151.0,0.00018224,2]
[379110191,1755147044872,-460.0,0.00018224,2]
[379110193,1755147044882,-464.63339883,0.00018224,2]
[379110195,1755147044890,-460.0,0.00018224,2]
[379110197,1755147044899,-460.0,0.00018224,2]
[379110199,1755147044909,-461.13987459,0.00018224,2]
[379110201,1755147044918,-460.0,0.00018224,2]
[379110203,1755147044927,-460.0,0.00018224,2]
[379110205,1755147044936,-500.0,0.00018224,2]
[379110207,1755147044945,-460.0,0.00018224,2]
[379110209,1755147044955,-460.0,0.00018224,2]
[379110211,1755147044964,-460.0,0.00018224,2]
[379110213,1755147044974,-460.0,0.00018224,2]
[379110215,1755147044983,-541.46,0.00018224,2]
[379110217,1755147044992,-460.0,0.00018224,2]
[379110219,1755147045001,-460.0,0.00018224,2]
[379110221,1755147045011,-251.441035,0.00018224,2]
[379110224,1755147045021,-251.441035,0.00018224,2]
[379110226,1755147045031,-460.0,0.00018224,2]
[379110227,1755147045040,-251.441035,0.00018224,2]
[379110230,1755147045049,-521.22,0.00018224,2]
[379110232,1755147045059,-251.441035,0.00018224,2]
[379110234,1755147045068,-460.0,0.00018224,2]
[379110236,1755147045077,-460.0,0.00018224,2]
[379110238,1755147045086,-289.79542181,0.00018224,2]
[379110240,1755147045096,-460.0,0.00018224,2]
[379110242,1755147045105,-460.0,0.00018224,2]
[379110244,1755147045114,-151.0,0.00018224,2]
[379110246,1755147045123,-151.0,0.00018224,2]
[379110248,1755147045134,-151.0,0.00018224,2]
[379110249,1755147045143,-460.0,0.00018224,2]
[379110251,1755147045152,-568.19,0.00018224,2]
[379110253,1755147045162,-460.0,0.00018224,2]
[379110256,1755147045171,-460.74280763,0.00018224,2]
[379110258,1755147045180,-460.0,0.00018224,2]
[379110260,1755147045189,-460.0,0.00018224,2]
[379110262,1755147045199,-460.0,0.00018224,2]
[379110264,1755147045208,-640.39,0.00018224,2]
[379110266,1755147045218,-460.0,0.00018224,2]
[379110268,1755147045227,-151.664311,0.00018224,2]
[379110270,1755147045237,-460.0,0.00018224,2]
[379110272,1755147045246,-460.0,0.00018224,2]
[379110274,1755147045256,-460.0,0.00018224,2]
[379110276,1755147045265,-460.0,0.00018224,2]
[379110278,1755147045275,-460.0,0.00018224,2]
[379110280,1755147045284,-460.0,0.00018224,2]
[379110282,1755147045293,-460.0,0.00018224,2]
[379110284,1755147045302,-933.62,0.00018224,2]
[379110286,1755147045312,-460.0,0.00018224,2]
[379110288,1755147045321,-460.0,0.00018224,2]
[379110290,1755147045331,-460.0,0.00018224,2]
[379110292,1755147045340,-460.0,0.00018224,2]
[379110294,1755147045349,-460.0,0.00018224,2]
[379110296,1755147045359,-1028.05,0.00018224,2]
[379110298,1755147045368,-462.90149611,0.00018224,2]
[379110300,1755147045377,-460.81391095,0.00018224,2]
[379110302,1755147045387,-460.0,0.00018224,2]
[379110304,1755147045396,-151.0,0.00018224,2]
[379110306,1755147045406,-151.0,0.00018224,2]
[379110308,1755147045415,-460.0,0.00018224,2]
[379110310,1755147045427,-460.0,0.00018224,2]
[379110312,1755147045437,-460.0,0.00018224,2]
[379110314,1755147045447,-460.0,0.00018224,2]
[379110316,1755147045456,-460.0,0.00018224,2]
[379110318,1755147045465,-460.0,0.00018224,2]
[379110320,1755147045474,-151.0,0.00018224,2]
[379110322,1755147045484,-151.0,0.00018224,2]
[379110324,1755147045493,-511.52,0.00018224,2]
[379110326,1755147045503,-151.0,0.00018226,2]
[379110328,1755147045513,-460.0,0.00018226,2]
[379110330,1755147045522,-460.0,0.00018226,2]
[379110332,1755147045531,-151.0,0.00018226,2]
[379110334,1755147045541,-460.0,0.00018226,2]
[379110336,1755147045550,-460.0,0.00018226,2]
[379110339,1755147045559,-460.0,0.00018226,2]
[379110341,1755147045569,-460.0,0.00018226,2]
[379110343,1755147045578,-460.0,0.00018226,2]
[379110345,1755147045587,-460.0,0.00018226,2]
[379110347,1755147045597,-151.0,0.00018226,2]
[379110349,1755147045608,-151.0,0.00018226,2]
[379110351,1755147045617,-151.0,0.00018226,2]
[379110353,1755147045626,-151.0,0.00018226,2]
[379110355,1755147045636,-151.0,0.00018226,2]
[379110357,1755147045646,-460.0,0.00018226,2]
[379110359,1755147045655,-460.0,0.00018226,2]
[379110361,1755147045663,-151.0,0.00018226,2]
[379110363,1755147045673,-460.0,0.00018226,2]
[379110365,1755147045682,-460.0,0.00018226,2]
[379110367,1755147045691,-251.441035,0.00018226,2]
[379110369,1755147045700,-251.441035,0.00018226,2]
[379110371,1755147045709,-460.0,0.00018226,2]
[379110373,1755147045718,-151.0,0.00018226,2]
[379110375,1755147045727,-151.0,0.00018226,2]
[379110377,1755147045737,-158.944388,0.0001825,6]
[379110379,1755147045746,-379.30996427,0.00018254,2]
[379110381,1755147045756,-394.80841559,0.00018273,2]
[379110383,1755147045765,-500.0,0.00018273,2]
[379110385,1755147045774,-465.57732107,0.00018273,2]
[379110387,1755147045783,-568.29313216,0.00018273,2]
[379110389,1755147045792,-500.0,0.00018273,2]
[379110391,1755147045801,-500.62845234,0.00018273,2]
[379110393,1755147045811,-500.0,0.00018273,2]
[379110395,1755147045820,-171.8379418,0.00018273,2]
[379110397,1755147045828,-500.0,0.00018273,2]
[379110399,1755147045838,-500.0,0.00018273,2]
[379110401,1755147045847,-500.0,0.00018273,2]
[379110403,1755147045857,-500.0,0.00018273,2]
[379110405,1755147045866,-500.0,0.00018273,2]
[379110407,1755147045876,-500.0,0.00018273,2]
[379110409,1755147045885,-500.0,0.00018273,2]
[379110411,1755147045894,-500.0,0.00018273,2]
[379110413,1755147045903,-500.0,0.00018273,2]
[379110415,1755147045914,-754.06594016,0.00018308,2]
[379110417,1755147045923,-151.0,0.00018316,3]
[379110419,1755147045932,-151.0,0.00018316,3]
[379110421,1755147045942,-151.0,0.00018316,3]
[379110423,1755147045951,-500.0,0.00018316,3]
[379110425,1755147045961,-151.0,0.00018316,3]
[379110427,1755147045971,-198.69854472,0.00018316,3]
[379110429,1755147045980,-198.49212787,0.00018316,3]
[379110431,1755147045989,-151.0,0.00018316,2]
[379110433,1755147045999,-151.0,0.00018316,2]
[379110435,1755147046008,-500.0,0.00018316,2]
[379110437,1755147046017,-151.98949238,0.00018316,2]
[379110439,1755147046027,-151.2500064,0.00018316,2]
[379110441,1755147046036,-278.09689054,0.00018316,2]
[379110443,1755147046045,-151.65692859,0.00018316,2]
[379110445,1755147046054,-152.72131945,0.00018316,2]
[379110447,1755147046065,-151.0,0.00018316,3]
[379110449,1755147046074,-500.0,0.00018316,3]
[379110451,1755147046084,-500.0,0.00018316,3]
[379110453,1755147046093,-151.0,0.00018316,3]
[379110455,1755147046102,-500.0,0.00018316,3]
[379110457,1755147046111,-151.0,0.00018316,2]
[379110459,1755147046121,-500.0,0.00018316,3]
[379110461,1755147046130,-151.0,0.00018316,3]
[379110463,1755147046140,-379.30996427,0.00018324,2]
[379110465,1755147046149,-151.0,0.00018326,2]
[379110467,1755147046161,-181.920559,0.00018327,2]
[379110469,1755147046174,-151.0,0.00018327,2]
[379110471,1755147046186,-151.0,0.00018327,2]
[379110473,1755147046195,-151.0,0.00018327,2]
[379110475,1755147046205,-151.0,0.00018329,2]
[379110481,1755147046251,-379.30996427,0.00018395,2]
[379110483,1755147046260,-160.6882627,0.000184,2]
[379110485,1755147046269,-580.2983639,0.000184,2]
[379110487,1755147046279,-580.2983639,0.000184,2]
[379110489,1755147046287,-160.6882627,0.000184,2]
[379110491,1755147046297,-580.2983639,0.000184,2]
[379110493,1755147046306,-151.0,0.00018428,2]
[379110495,1755147046315,-151.0,0.00018428,2]
[379110497,1755147046324,-151.0,0.00018428,2]
[379110499,1755147046333,-151.555787,0.00018428,2]
[379110501,1755147046342,-151.0,0.00018428,2]
[379110503,1755147046351,-151.0,0.00018428,2]
[379110505,1755147046360,-155.444511,0.00018429,2]
[379110507,1755147046369,-236.732529,0.0001843,2]
[379110509,1755147046378,-501.03384307,0.00018473,2]
[379110511,1755147046388,-500.26168017,0.00018473,2]
[379110513,1755147046397,-204.19335988,0.00018473,2]
[379110515,1755147046405,-500.61538102,0.00018473,2]
[379110517,1755147046416,-500.0,0.00018473,2]
[379110519,1755147046427,-552.73353433,0.00018473,2]
[379110521,1755147046436,-500.0,0.00018473,2]